[Event "47th GRE-chT 2019"]
[Site "Patra"]
[Date "2019.07.02"]
[Round "1.2"]
[White "Markidis, Konstantinos"]
[Black "Halkias, Stelios"]
[Result "1/2-1/2"]
[ECO "B30"]
[WhiteElo "2247"]
[BlackElo "2553"]
[Annotator "ChessBase"]
[PlyCount "63"]
[EventDate "2019.07.02"]
[EventCountry "GRE"]
[SourceTitle "playchess.com"]
[Source "ChessBase"]
[SourceQuality "1"]
[TimeControl "5400+30"]

1. e4 {[%emt 0:04:52]} c5 {[%emt 0:00:00]} 2. Nf3 {[%emt 0:00:14]} Nc6 {[%emt 0:00:00]} 3. Bb5 {[%emt 0:00:20]} e6 {[%emt 0:00:53]} 4. O-O {[%emt 0:00:23]} Nge7 {[%emt 0:00:43]} 5. d4 {[%emt 0:00:48]} cxd4 {[%emt 0:00:07]} 6. Nxd4 {[%emt 0:01:04]} Ng6 {[%emt 0:03:30]} 7. Be2 {[%emt 0:10:00]} Be7 {[%emt 0:02:36]} 8. Be3 {[%emt 0:01:34]} O-O {[%emt 0:01:25]} 9. c4 {[%emt 0:20:24]} Nxd4 {[%emt 0:03:02]} 10. Qxd4 {[%emt 0:03:18]} b6 {[%emt 0:00:47]} 11. Nc3 {[%emt 0:01:50]} Bb7 {[%emt 0:08:15]} 12. Rad1 {[%emt 0:02:50]} Bc6 {[%emt 0:13:16]} 13. f4 {[%emt 0:09:52]} Qb8 {[%emt 0:06:31]} 14. g3 {[%emt 0:14:51]} f6 {[%emt 0:10:13]} 15. Qd3 {[%emt 0:07:00]} a6 {[%emt 0:06:54]} 16. a3 {[%emt 0:05:31]} b5 {[%emt 0:15:40]} 17. cxb5 {[%emt 0:00:40]} axb5 {[%emt 0:00:37]} 18. Nxb5 {[%emt 0:05:18]} Qb7 {[%emt 0:00:07]} 19. Rd2 {[%emt 0:01:33]} Rfb8 {[%emt 0:00:28]} 20. Nc3 {[%emt 0:00:44]} Bd8 {[%emt 0:06:56]} 21. Ra1 {[%emt 0:01:34]} Ba5 {[%emt 0:01:37]} 22. b4 {[%emt 0:02:36]} Bxb4 {[%emt 0:00:56]} 23. Rb2 {[%emt 0:01:29]} Qc8 {[%emt 0:01:46]} 24. Rb3 {[%emt 0:00:53]} Ba5 {[%emt 0:00:25]} 25. Rab1 Rxb3 {[%emt 0:00:00]} 26. Rxb3 {[%emt 0:00:00]} Bxc3 {[%emt 0:00:32]} 27. Rxc3 {[%emt 0:02:24]} Ra4 {[%emt 0:02:15]} 28. Rc4 {[%emt 0:00:43]} Qa8 {[%emt 0:00:17]} 29. Rxa4 {[%emt 0:00:03]} Qxa4 {[%emt 0:01:21]} 30. Bd4 {[%emt 0:01:24]} Bb5 {[%emt 0:01:03]} 31. Bd1 {[%emt 0:00:30]} Qa6 {[%emt 0:02:00]} 32. Qc3 {[%emt 0:01:14]} 1/2-1/2

[Event "47th GRE-chT 2019"]
[Site "Patra"]
[Date "2019.07.02"]
[Round "1.2"]
[White "Nikolaidis, Konstantinos"]
[Black "Martinovic, Sasa"]
[Result "1/2-1/2"]
[ECO "E73"]
[WhiteElo "2147"]
[BlackElo "2560"]
[Annotator "ChessBase"]
[PlyCount "65"]
[EventDate "2019.07.02"]
[EventCountry "GRE"]
[SourceTitle "playchess.com"]
[Source "ChessBase"]
[SourceQuality "1"]
[TimeControl "5400+30"]

1. d4 {[%emt 0:00:00]} Nf6 {[%emt 0:00:00]} 2. c4 {[%emt 0:00:01]} g6 {[%emt 0:00:00]} 3. Nc3 {[%emt 0:00:19]} Bg7 {[%emt 0:00:00]} 4. e4 {[%emt 0:00:28]} d6 {[%emt 0:00:00]} 5. Be2 {[%emt 0:00:18]} O-O {[%emt 0:00:00]} 6. Be3 {[%emt 0:00:36]} e5 {[%emt 0:00:45]} 7. d5 {[%emt 0:00:25]} Na6 {[%emt 0:00:04]} 8. g4 {[%emt 0:00:32]} Nc5 {[%emt 0:00:07]} 9. f3 {[%emt 0:03:52]} h5 {[%emt 0:00:20]} 10. g5 {[%emt 0:00:21]} Nh7 {[%emt 0:00:11]} 11. h4 {[%emt 0:00:41]} f6 {[%emt 0:00:07]} 12. gxf6 {[%emt 0:00:20]} Bxf6 {[%emt 0:00:16]} 13. Bf2 {[%emt 0:00:12]} Be7 {[%emt 0:01:08]} 14. Kd2 {[%emt 0:00:28]} Rf4 {[%emt 0:15:03]} 15. Qe1 {[%emt 0:00:25]} a5 {[%emt 0:03:39]} 16. Kc2 {[%emt 0:01:36]} Nf8 {[%emt 0:03:58]} 17. Rd1 {[%emt 0:03:32]} a4 {[%emt 0:04:42]} 18. Rd2 {[%emt 0:10:20]} Kh7 {[%emt 0:04:25]} 19. Bd1 {[%emt 0:06:50]} Nfd7 {[%emt 0:02:59]} 20. Nh3 {[%emt 0:03:45]} Rf7 {[%emt 0:08:05]} 21. Be3 {[%emt 0:09:10]} Nb6 {[%emt 0:02:54]} 22. Ng5+ {[%emt 0:04:55]} Bxg5 {[%emt 0:00:04]} 23. Bxg5 {[%emt 0:00:48]} Qf8 {[%emt 0:01:23]} 24. Qf1 {[%emt 0:04:19]} c6 {[%emt 0:09:17]} 25. Rg2 {[%emt 0:02:02]} cxd5 {[%emt 0:04:31]} 26. cxd5 {[%emt 0:00:05]} Bd7 {[%emt 0:00:43]} 27. Kb1 {[%emt 0:01:23]} Rc8 {[%emt 0:03:47]} 28. Bd2 {[%emt 0:06:12]} Be8 {[%emt 0:11:32]} 29. Rhg1 {[%emt 0:06:28]} Rf6 {[%emt 0:04:03]} 30. Bg5 {[%emt 0:09:14]} Rf7 {[%emt 0:01:23]} 31. Bd2 {[%emt 0:03:00]} Rf6 {[%emt 0:04:54]} 32. Bg5 {[%emt 0:01:48]} Rf7 {[%emt 0:00:05]} 33. Bd2 {[%emt 0:01:48]} 1/2-1/2

[Event "47th GRE-chT 2019"]
[Site "Patra"]
[Date "2019.07.02"]
[Round "1.3"]
[White "Spyropoulos, Nikolaos"]
[Black "Kordis, Konstantinos"]
[Result "1-0"]
[ECO "B84"]
[WhiteElo "2404"]
[BlackElo "2128"]
[Annotator "ChessBase"]
[PlyCount "43"]
[EventDate "2019.07.02"]
[EventCountry "GRE"]
[SourceTitle "playchess.com"]
[Source "ChessBase"]
[SourceQuality "1"]
[TimeControl "5400+30"]

1. e4 {[%emt 0:00:00]} c5 {[%emt 0:00:00]} 2. Nf3 {[%emt 0:00:00]} d6 {[%emt 0:00:00]} 3. d4 {[%emt 0:00:00]} cxd4 {[%emt 0:00:00]} 4. Nxd4 {[%emt 0:00:00]} Nf6 {[%emt 0:00:02]} 5. Nc3 {[%emt 0:00:05]} a6 {[%emt 0:00:09]} 6. Be2 {[%emt 0:00:50]} e6 {[%emt 0:00:30]} 7. Be3 {[%emt 0:00:20]} Nc6 {[%emt 0:00:37]} 8. g4 {[%emt 0:04:46]} h6 {[%emt 0:03:32]} 9. Qd2 {[%emt 0:22:32]} Qc7 {[%emt 0:22:49]} 10. f4 {[%emt 0:04:52]} Nd7 {[%emt 0:08:21]} 11. O-O-O {[%emt 0:13:46]} Nxd4 {[%emt 0:01:20]} 12. Bxd4 {[%emt 0:05:04]} b5 {[%emt 0:00:12]} 13. a3 {[%emt 0:00:18]} Nb6 {[%emt 0:03:46]} 14. g5 {[%emt 0:04:42]} hxg5 {[%emt 0:05:18]} 15. fxg5 {[%emt 0:00:05]} Nc4 {[%emt 0:00:12]} 16. Bxc4 {[%emt 0:03:42]} Qxc4 {[%emt 0:03:30]} 17. h4 {[%emt 0:04:30]} Rh5 {[%emt 0:21:19]} 18. Bxg7 {[%emt 0:05:10]} Be7 {[%emt 0:07:03]} 19. Bf6 {[%emt 0:00:40]} Bf8 {[%emt 0:01:19]} 20. Qg2 {[%emt 0:06:30]} Qc7 {[%emt 0:03:42]} 21. Qf3 {[%emt 0:04:31]} Rh7 {[%emt 0:03:03]} 22. h5 {[%emt 0:00:07]} 1-0

[Event "47th GRE-chT 2019"]
[Site "Patra"]
[Date "2019.07.02"]
[Round "1.3"]
[White "Goumas, Georgios"]
[Black "Michos, Thomas"]
[Result "1-0"]
[ECO "C45"]
[WhiteElo "2388"]
[BlackElo "2212"]
[Annotator "ChessBase"]
[PlyCount "47"]
[EventDate "2019.07.02"]
[EventCountry "GRE"]
[SourceTitle "playchess.com"]
[Source "ChessBase"]
[SourceQuality "1"]
[TimeControl "5400+30"]

1. e4 {[%emt 0:01:05]} e5 {[%emt 0:00:00]} 2. Nf3 {[%emt 0:00:13]} Nc6 {[%emt 0:00:00]} 3. d4 {[%emt 0:00:11]} exd4 {[%emt 0:00:00]} 4. Nxd4 {[%emt 0:00:06]} Nf6 {[%emt 0:00:00]} 5. Nxc6 {[%emt 0:01:02]} bxc6 {[%emt 0:00:00]} 6. e5 {[%emt 0:00:24]} Qe7 {[%emt 0:00:28]} 7. Qe2 {[%emt 0:00:11]} Nd5 {[%emt 0:00:05]} 8. c4 {[%emt 0:00:37]} Nb6 {[%emt 0:00:05]} 9. Nc3 {[%emt 0:00:34]} a5 {[%emt 0:00:23]} 10. Bd2 {[%emt 0:02:01]} Ba6 {[%emt 0:03:24]} 11. Qe4 {[%emt 0:03:25]} Qe6 {[%emt 0:00:18]} 12. b3 {[%emt 0:00:28]} Bb4 {[%emt 0:12:28]} 13. Bd3 {[%emt 0:00:56]} d5 {[%emt 0:11:49]} 14. exd6 {[%emt 0:01:48]} cxd6 {[%emt 0:00:22]} 15. O-O-O {[%emt 0:00:10]} Qxe4 {[%emt 0:02:07]} 16. Bxe4 {[%emt 0:00:42]} Rc8 {[%emt 0:12:36]} 17. Bf5 {[%emt 0:01:34]} Rc7 {[%emt 0:04:39]} 18. Rhe1+ {[%emt 0:00:21]} Re7 {[%emt 0:00:08]} 19. Ne4 {[%emt 0:13:45]} Bxd2+ {[%emt 0:09:12]} 20. Kxd2 {[%emt 0:00:38]} d5 {[%emt 0:01:52]} 21. Nd6+ {[%emt 0:00:25]} Kd8 {[%emt 0:00:56]} 22. c5 {[%emt 0:00:05]} Nd7 {[%emt 0:04:34]} 23. Rxe7 {[%emt 0:00:09]} Kxe7 {[%emt 0:00:00]} 24. Re1+ {[%emt 0:00:00]} 1-0

[Event "47th GRE-chT 2019"]
[Site "Patra"]
[Date "2019.07.02"]
[Round "1.4"]
[White "Valsamidis, Ioannis"]
[Black "Michelakos, Panagiotis"]
[Result "0-1"]
[ECO "B31"]
[WhiteElo "2063"]
[BlackElo "2265"]
[Annotator "NA"]
[PlyCount "86"]
[EventDate "2019.07.02"]
[EventCountry "GRE"]
[SourceTitle "playchess.com"]
[Source "ChessBase"]
[SourceQuality "1"]
[TimeControl "5400+30"]

1. e4 {[%emt 0:00:00]} c5 {[%emt 0:00:00]} 2. Nf3 {[%emt 0:00:54]} Nc6 {[%emt 0:00:00]} 3. Bb5 {[%emt 0:00:25]} g6 {[%emt 0:00:55]} 4. c3 {[%emt 0:00:44]} Bg7 {[%emt 0:00:15]} 5. d4 {[%emt 0:03:22]} cxd4 {[%emt 0:00:05]} 6. cxd4 {[%emt 0:15:10]} Nf6 {[%emt 0:02:53]} 7. Nc3 {[%emt 0:03:27]} a6 {[%emt 0:14:24]} 8. Bd3 {[%emt 0:02:05]} d6 {[%emt 0:00:52]} 9. h3 {[%emt 0:01:50]} O-O {[%emt 0:00:46]} 10. O-O {[%emt 0:00:12]} Nd7 {[%emt 0:09:44]} 11. Be3 {[%emt 0:17:04]} b5 {[%emt 0:04:21]} 12. Rc1 {[%emt 0:00:55]} Bb7 {[%emt 0:11:53]} 13. a4 {[%emt 0:02:24]} b4 {[%emt 0:07:59]} 14. Nb1 {[%emt 0:18:16]} e5 {[%emt 0:02:07]} 15. d5 {[%emt 0:01:08]} Nd4 {[%emt 0:12:17]} 16. Nbd2 {[%emt 0:02:44]} Nc5 {[%emt 0:01:04]} 17. Bb1 {[%emt 0:01:47]} a5 {[%emt 0:11:48]} 18. Nc4 {[%emt 0:07:15]} Ba6 {[%emt 0:11:16]} 19. Nfd2 {[%emt 0:06:03]} Rc8 {[%emt 0:03:11]} 20. Bxd4 {[%emt 0:00:05]} exd4 {[%emt 0:01:31]} 21. f4 {[%emt 0:09:43]} d3 {[%emt 0:01:06]} 22. Rf3 {[%emt 0:02:01]} Nxe4 {[%emt 0:01:12]} 23. Bxd3 {[%emt 0:00:39]} Bd4+ {[%emt 0:00:26]} 24. Kh2 {[%emt 0:00:46]} Nf2 {[%emt 0:01:18]} 25. Qf1 {[%emt 0:00:15]} Nxd3 {[%emt 0:00:01]} 26. Rxd3 {[%emt 0:01:00]} Bg7 {[%emt 0:00:53]} 27. b3 {[%emt 0:02:29]} Re8 {[%emt 0:00:23]} 28. Re1 {[%emt 0:00:36]} Qh4 {[%emt 0:00:30]} 29. g3 {[%emt 0:00:26]} Rxe1 {[%emt 0:00:04]} 30. Qxe1 {[%emt 0:00:33]} Qf6 {[%emt 0:00:11]} 31. Re3 {[%emt 0:00:22]} Bxc4 {[%emt 0:00:13]} 32. Nxc4 {[%emt 0:00:11]} h5 {[%emt 0:01:28]} 33. h4 {[%emt 0:00:06]} Rc5 {[%emt 0:00:21]} 34. Re8+ {[%emt 0:00:02]} Kh7 {[%emt 0:00:52]} 35. Qe4 {[%emt 0:01:14]} Qd4 {[%emt 0:00:33]} 36. Nxd6 {[%emt 0:00:53]} Qb2+ {[%emt 0:00:22]} 37. Kh3 {[%emt 0:00:01]} Rc2 {[%emt 0:00:28]} 38. Qh1 {[%emt 0:01:02]} Qf6 {[%emt 0:00:34]} 39. Qe4 {[%emt 0:00:13]} Qxd6 {[%emt 0:00:00]} 40. Qxc2 {[%emt 0:00:00]} Qd7+ {[%emt 0:00:00]} 41. Re6 {[%emt 0:00:00]} fxe6 {[%emt 0:00:00]} 42. dxe6 {[%emt 0:00:00]} Qxe6+ {[%emt 0:00:00]} 43. Kh2 {[%emt 0:00:00]} Bc3 {[%emt 0:00:00]} 0-1

[Event "47th GRE-chT 2019"]
[Site "Patra"]
[Date "2019.07.02"]
[Round "1.4"]
[White "Dimopoulos, Symeon"]
[Black "Balokas, Dimitrios"]
[Result "1/2-1/2"]
[ECO "C48"]
[WhiteElo "2008"]
[BlackElo "2206"]
[Annotator "NA"]
[PlyCount "35"]
[EventDate "2019.07.02"]
[EventCountry "GRE"]
[SourceTitle "playchess.com"]
[Source "ChessBase"]
[SourceQuality "1"]
[TimeControl "5400+30"]

1. e4 {[%emt 0:02:57]} e5 {[%emt 0:00:00]} 2. Nf3 {[%emt 0:00:25]} Nc6 {[%emt 0:00:00]} 3. Nc3 {[%emt 0:01:49]} Nf6 {[%emt 0:00:55]} 4. Bb5 {[%emt 0:01:57]} Bc5 {[%emt 0:01:33]} 5. Nxe5 {[%emt 0:02:11]} Nxe5 {[%emt 0:00:15]} 6. d4 {[%emt 0:00:09]} a6 {[%emt 0:00:14]} 7. Be2 {[%emt 0:01:49]} Bd6 {[%emt 0:00:13]} 8. dxe5 {[%emt 0:02:19]} Bxe5 {[%emt 0:00:45]} 9. Bg5 {[%emt 0:01:20]} h6 {[%emt 0:01:48]} 10. Bh4 {[%emt 0:00:53]} c6 {[%emt 0:02:23]} 11. O-O {[%emt 0:01:38]} Qc7 {[%emt 0:00:08]} 12. f4 {[%emt 0:09:25]} Bxf4 {[%emt 0:00:26]} 13. Rxf4 {[%emt 0:00:50]} Qxf4 {[%emt 0:00:08]} 14. Bg3 {[%emt 0:00:19]} Qe3+ {[%emt 0:00:08]} 15. Bf2 {[%emt 0:00:51]} Qf4 {[%emt 0:00:07]} 16. Bg3 {[%emt 0:01:25]} Qe3+ {[%emt 0:00:07]} 17. Bf2 {[%emt 0:01:05]} Qf4 {[%emt 0:00:08]} 18. Bg3 {[%emt 0:02:16]} 1/2-1/2

[Event "47th GRE-chT 2019"]
[Site "Patra"]
[Date "2019.07.02"]
[Round "1.5"]
[White "Botsari, Anna-Maria"]
[Black "Galunova, Tsveta"]
[Result "0-1"]
[ECO "D26"]
[WhiteElo "2233"]
[BlackElo "2156"]
[Annotator "NA"]
[PlyCount "64"]
[EventDate "2019.07.02"]
[EventCountry "GRE"]
[SourceTitle "playchess.com"]
[Source "ChessBase"]
[SourceQuality "1"]
[TimeControl "5400+30"]

1. d4 {[%emt 0:00:15]} d5 {[%emt 0:00:00]} 2. c4 {[%emt 0:00:15]} dxc4 {[%emt 0:00:00]} 3. Nf3 {[%emt 0:00:10]} Nf6 {[%emt 0:00:00]} 4. e3 {[%emt 0:01:23]} e6 {[%emt 0:00:02]} 5. Bxc4 {[%emt 0:00:06]} c5 {[%emt 0:00:10]} 6. O-O {[%emt 0:00:42]} Nc6 {[%emt 0:00:21]} 7. Qe2 {[%emt 0:01:22]} cxd4 {[%emt 0:00:21]} 8. Rd1 {[%emt 0:00:13]} Be7 {[%emt 0:01:03]} 9. exd4 {[%emt 0:00:58]} Na5 {[%emt 0:03:24]} 10. Bd3 {[%emt 0:00:46]} O-O {[%emt 0:00:18]} 11. Nc3 {[%emt 0:00:13]} b6 {[%emt 0:00:54]} 12. Bg5 {[%emt 0:04:39]} Bb7 {[%emt 0:01:17]} 13. Rac1 {[%emt 0:06:19]} Rc8 {[%emt 0:05:36]} 14. Bb1 {[%emt 0:13:45]} Re8 {[%emt 0:27:12]} 15. Ne5 {[%emt 0:08:30]} g6 {[%emt 0:09:44]} 16. Bh6 {[%emt 0:07:40]} Bf8 {[%emt 0:07:02]} 17. Bg5 {[%emt 0:10:58]} Be7 {[%emt 0:00:44]} 18. Re1 {[%emt 0:15:34]} Nd5 {[%emt 0:11:20]} 19. Bd2 {[%emt 0:06:53]} Nxc3 {[%emt 0:02:18]} 20. bxc3 {[%emt 0:01:10]} Bg5 {[%emt 0:04:37]} 21. Be3 {[%emt 0:04:57]} Qd5 {[%emt 0:03:29]} 22. Qg4 {[%emt 0:03:30]} Bxe3 {[%emt 0:02:34]} 23. Rxe3 {[%emt 0:01:51]} f5 {[%emt 0:03:29]} 24. Qg5 {[%emt 0:01:33]} Qxd4 {[%emt 0:09:02]} 25. Qf6 {[%emt 0:04:48]} Rc7 {[%emt 0:00:34]} 26. Rd3 {[%emt 0:00:43]} Qf4 {[%emt 0:00:52]} 27. Rcd1 {[%emt 0:01:35]} Bd5 {[%emt 0:00:37]} 28. g3 {[%emt 0:02:07]} Qh6 {[%emt 0:01:08]} 29. h4 {[%emt 0:00:55]} Qg7 {[%emt 0:01:02]} 30. Qxg7+ {[%emt 0:00:15]} Kxg7 {[%emt 0:00:01]} 31. f4 {[%emt 0:00:32]} Nc4 {[%emt 0:00:38]} 32. Nxc4 {[%emt 0:00:46]} Rxc4 {[%emt 0:00:03]} 0-1

[Event "47th GRE-chT 2019"]
[Site "Patra"]
[Date "2019.07.02"]
[Round "1.6"]
[White "Aivazian, Elpida Sofia"]
[Black "Bastianou, Chrysoula"]
[Result "1/2-1/2"]
[ECO "C07"]
[WhiteElo "1630"]
[BlackElo "1670"]
[Annotator "NA"]
[PlyCount "106"]
[EventDate "2019.07.02"]
[EventCountry "GRE"]
[SourceTitle "playchess.com"]
[Source "ChessBase"]
[SourceQuality "1"]
[TimeControl "5400+30"]

1. e4 {[%emt 0:00:00]} e6 {[%emt 0:00:00]} 2. d4 {[%emt 0:00:00]} d5 {[%emt 0:00:00]} 3. Nd2 {[%emt 0:00:00]} c5 {[%emt 0:00:00]} 4. Ngf3 {[%emt 0:00:00]} cxd4 {[%emt 0:00:00]} 5. exd5 {[%emt 0:00:00]} Qxd5 {[%emt 0:00:00]} 6. Bc4 {[%emt 0:00:04]} Qd8 {[%emt 0:00:14]} 7. O-O {[%emt 0:00:45]} a6 {[%emt 0:11:52]} 8. a4 {[%emt 0:03:26]} Nf6 {[%emt 0:01:27]} 9. Nb3 {[%emt 0:03:16]} Bd6 {[%emt 0:03:51]} 10. Nbxd4 {[%emt 0:03:14]} Qc7 {[%emt 0:04:59]} 11. Qe2 {[%emt 0:04:36]} O-O {[%emt 0:03:24]} 12. Bg5 {[%emt 0:31:31]} e5 {[%emt 0:08:17]} 13. Bxf6 {[%emt 0:00:06]} gxf6 {[%emt 0:01:46]} 14. Nb3 {[%emt 0:07:25]} Kh8 {[%emt 0:11:50]} 15. Nbd2 {[%emt 0:23:33]} Nc6 {[%emt 0:15:30]} 16. Ne4 {[%emt 0:02:18]} f5 {[%emt 0:06:50]} 17. Nxd6 {[%emt 0:00:07]} Qxd6 {[%emt 0:02:23]} 18. Rfd1 {[%emt 0:01:35]} Qf6 {[%emt 0:10:48]} 19. c3 {[%emt 0:03:52]} Be6 {[%emt 0:01:05]} 20. Bxe6 {[%emt 0:00:07]} Qxe6 {[%emt 0:06:55]} 21. b4 {[%emt 0:06:05]} Rac8 {[%emt 0:00:54]} 22. b5 {[%emt 0:03:09]} Na5 23. Qxe5+ {[%emt 0:00:00]} Qxe5 {[%emt 0:00:56]} 24. Nxe5 {[%emt 0:01:37]} Rxc3 {[%emt 0:00:58]} 25. bxa6 {[%emt 0:00:39]} bxa6 {[%emt 0:02:43]} 26. Rd7 {[%emt 0:01:32]} Kg8 {[%emt 0:01:19]} 27. h3 {[%emt 0:00:53]} Nb3 {[%emt 0:00:34]} 28. Rad1 {[%emt 0:01:05]} Nc5 {[%emt 0:02:53]} 29. R7d5 {[%emt 0:01:49]} Nxa4 {[%emt 0:00:16]} 30. Ra5 {[%emt 0:00:34]} Nc5 {[%emt 0:01:05]} 31. Nd7 {[%emt 0:00:11]} Nxd7 {[%emt 0:00:05]} 32. Rxd7 {[%emt 0:01:34]} Rc6 {[%emt 0:02:02]} 33. Ra7 {[%emt 0:00:40]} Kg7 {[%emt 0:00:36]} 34. R7xa6 {[%emt 0:00:07]} Rxa6 {[%emt 0:00:04]} 35. Rxa6 {[%emt 0:00:31]} Re8 {[%emt 0:00:59]} 36. Kh2 {[%emt 0:00:23]} f6 {[%emt 0:00:37]} 37. Kg3 {[%emt 0:00:10]} Kg6 {[%emt 0:00:34]} 38. h4 {[%emt 0:01:04]} h5 {[%emt 0:00:28]} 39. Kf3 {[%emt 0:00:25]} Rd8 {[%emt 0:00:00]} 40. Re6 {[%emt 0:00:00]} Rc8 {[%emt 0:00:00]} 41. g3 {[%emt 0:00:00]} Rb8 {[%emt 0:00:00]} 42. Ke2 {[%emt 0:00:00]} Rb2+ {[%emt 0:00:00]} 43. Ke3 {[%emt 0:00:00]} Rb3+ {[%emt 0:00:00]} 44. Kd4 {[%emt 0:00:00]} Rb2 {[%emt 0:00:00]} 45. Ke3 {[%emt 0:00:00]} Rb3+ {[%emt 0:00:00]} 46. Ke2 {[%emt 0:00:00]} Rb2+ {[%emt 0:00:00]} 47. Kf3 {[%emt 0:00:00]} Rb3+ {[%emt 0:00:00]} 48. Re3 {[%emt 0:00:00]} Rb4 {[%emt 0:00:00]} 49. Kg2 {[%emt 0:00:00]} Rc4 {[%emt 0:00:00]} 50. Kh3 {[%emt 0:00:00]} Rb4 {[%emt 0:00:00]} 51. f3 {[%emt 0:00:00]} Rc4 {[%emt 0:00:00]} 52. Kg2 {[%emt 0:00:00]} Rc2+ {[%emt 0:00:00]} 53. Kg1 {[%emt 0:00:00]} Ra2 {[%emt 1:00:21]} 1/2-1/2

[Event "47th GRE-chT 2019"]
[Site "Patra"]
[Date "2019.07.02"]
[Round "1.6"]
[White "Tounta, Nefeli"]
[Black "Stratigi, Evangelia"]
[Result "1/2-1/2"]
[ECO "E24"]
[WhiteElo "1331"]
[BlackElo "1624"]
[Annotator "NA"]
[PlyCount "85"]
[EventDate "2019.07.02"]
[EventCountry "GRE"]
[SourceTitle "playchess.com"]
[Source "ChessBase"]
[SourceQuality "1"]
[TimeControl "5400+30"]

1. d4 {[%emt 0:00:00]} Nf6 {[%emt 0:00:00]} 2. c4 {[%emt 0:00:00]} e6 {[%emt 0:00:27]} 3. Nc3 {[%emt 0:00:57]} Bb4 {[%emt 0:00:40]} 4. a3 {[%emt 0:01:13]} Bxc3+ {[%emt 0:01:08]} 5. bxc3 {[%emt 0:00:06]} b6 {[%emt 0:01:12]} 6. Bg5 {[%emt 0:08:22]} Bb7 {[%emt 0:03:46]} 7. f3 {[%emt 0:07:33]} d6 {[%emt 0:04:49]} 8. e4 {[%emt 0:04:08]} Nbd7 {[%emt 0:01:44]} 9. Bd3 {[%emt 0:06:58]} O-O {[%emt 0:03:37]} 10. Ne2 {[%emt 0:01:48]} c5 {[%emt 0:05:34]} 11. O-O {[%emt 0:04:27]} Qc7 {[%emt 0:05:55]} 12. d5 {[%emt 0:13:09]} h6 {[%emt 0:08:21]} 13. Bh4 {[%emt 0:04:18]} g5 {[%emt 0:06:01]} 14. Bg3 {[%emt 0:02:46]} e5 {[%emt 0:02:10]} 15. h4 {[%emt 0:09:12]} Nh5 {[%emt 0:02:11]} 16. hxg5 {[%emt 0:03:21]} hxg5 {[%emt 0:00:31]} 17. Kf2 {[%emt 0:01:18]} Kg7 {[%emt 0:03:14]} 18. Rh1 {[%emt 0:02:27]} Rh8 {[%emt 0:01:05]} 19. Bh2 {[%emt 0:03:07]} Qd8 {[%emt 0:05:29]} 20. Ng3 {[%emt 0:01:16]} Nxg3 {[%emt 0:06:33]} 21. Bxg3 {[%emt 0:00:16]} Rxh1 {[%emt 0:01:02]} 22. Qxh1 {[%emt 0:00:08]} Qe7 {[%emt 0:04:21]} 23. Qh3 {[%emt 0:03:08]} Rh8 {[%emt 0:02:30]} 24. Qg4 {[%emt 0:05:43]} Bc8 {[%emt 0:05:01]} 25. f4 {[%emt 0:00:40]} exf4 {[%emt 0:04:54]} 26. Bxf4 {[%emt 0:00:39]} f6 {[%emt 0:03:11]} 27. Qg3 {[%emt 0:01:29]} Kf7 {[%emt 0:01:38]} 28. Bxd6 {[%emt 0:01:10]} Qe8 {[%emt 0:04:45]} 29. Re1 {[%emt 0:01:25]} Ne5 {[%emt 0:04:31]} 30. Bxe5 {[%emt 0:00:47]} Qxe5 {[%emt 0:00:20]} 31. Qxe5 {[%emt 0:00:20]} fxe5 {[%emt 0:00:04]} 32. Rf1 {[%emt 0:02:28]} Rh4 {[%emt 0:02:48]} 33. Ke3+ {[%emt 0:04:54]} Rf4 {[%emt 0:01:49]} 34. Rxf4+ {[%emt 0:00:50]} gxf4+ {[%emt 0:00:08]} 35. Kf3 {[%emt 0:00:07]} Ke7 {[%emt 0:01:00]} 36. g3 {[%emt 0:01:06]} fxg3 {[%emt 0:00:07]} 37. Kxg3 {[%emt 0:00:06]} Kf6 {[%emt 0:01:18]} 38. Kh4 {[%emt 0:00:18]} Ke7 {[%emt 0:00:46]} 39. Be2 {[%emt 0:00:48]} Kd6 {[%emt 0:01:12]} 40. Bg4 {[%emt 0:00:00]} Ba6 {[%emt 0:00:00]} 41. Be2 {[%emt 0:00:00]} Bc8 {[%emt 0:00:00]} 42. Kg5 {[%emt 0:00:00]} Bh3 {[%emt 0:00:00]} 43. Bd3 {[%emt 0:00:00]} 1/2-1/2

[Event "47th GRE-chT 2019"]
[Site "Patra"]
[Date "2019.07.02"]
[Round "1.7"]
[White "Arapkoule, Eirini"]
[Black "Mplitsa, Artemis"]
[Result "1/2-1/2"]
[ECO "D30"]
[WhiteElo "1376"]
[BlackElo "1291"]
[Annotator "NA"]
[PlyCount "86"]
[EventDate "2019.07.02"]
[EventCountry "GRE"]
[SourceTitle "playchess.com"]
[Source "ChessBase"]
[SourceQuality "1"]
[TimeControl "5400+30"]

1. d4 {[%emt 0:00:00]} d5 {[%emt 0:00:00]} 2. c4 {[%emt 0:00:00]} c6 {[%emt 0:00:00]} 3. Nf3 {[%emt 0:00:00]} Nf6 {[%emt 0:00:00]} 4. e3 {[%emt 0:00:32]} e6 {[%emt 0:00:02]} 5. b3 {[%emt 0:00:23]} Nbd7 {[%emt 0:01:48]} 6. Bd3 {[%emt 0:01:28]} Bd6 {[%emt 0:04:24]} 7. O-O {[%emt 0:01:18]} O-O {[%emt 0:00:52]} 8. Nbd2 {[%emt 0:00:50]} Re8 {[%emt 0:06:36]} 9. Bb2 {[%emt 0:01:19]} e5 {[%emt 0:01:42]} 10. dxe5 {[%emt 0:00:15]} Nxe5 {[%emt 0:00:54]} 11. Nxe5 {[%emt 0:00:28]} Bxe5 {[%emt 0:00:07]} 12. Bxe5 {[%emt 0:00:16]} Rxe5 {[%emt 0:00:10]} 13. Nf3 {[%emt 0:00:20]} Re8 {[%emt 0:01:52]} 14. Qc2 {[%emt 0:01:08]} h6 {[%emt 0:08:25]} 15. h3 {[%emt 0:01:53]} Qc7 {[%emt 0:07:19]} 16. Rfd1 {[%emt 0:02:44]} dxc4 {[%emt 0:11:09]} 17. Bxc4 {[%emt 0:00:26]} Be6 {[%emt 0:01:18]} 18. Bxe6 {[%emt 0:06:25]} Rxe6 {[%emt 0:00:24]} 19. Nd4 {[%emt 0:00:27]} Rd6 {[%emt 0:05:31]} 20. Nb5 {[%emt 0:05:57]} Rxd1+ {[%emt 0:01:19]} 21. Rxd1 {[%emt 0:00:09]} Qa5 {[%emt 0:03:00]} 22. Nd6 {[%emt 0:00:44]} Qb4 {[%emt 0:08:53]} 23. Rd4 {[%emt 0:03:57]} Qb6 {[%emt 0:04:03]} 24. Qc4 {[%emt 0:01:27]} Qc7 {[%emt 0:01:45]} 25. Qd3 {[%emt 0:01:21]} Rd8 {[%emt 0:04:07]} 26. Ne4 {[%emt 0:00:51]} Re8 {[%emt 0:08:16]} 27. Nxf6+ {[%emt 0:00:20]} gxf6 {[%emt 0:00:05]} 28. Qf5 {[%emt 0:02:40]} Qe5 {[%emt 0:03:22]} 29. Qxe5 {[%emt 0:00:46]} Rxe5 {[%emt 0:02:18]} 30. Rd7 {[%emt 0:00:59]} Rb5 {[%emt 0:00:29]} 31. Kf1 {[%emt 0:00:18]} a5 {[%emt 0:01:16]} 32. Rc7 {[%emt 0:01:27]} a4 {[%emt 0:04:33]} 33. bxa4 {[%emt 0:00:55]} Rb2 {[%emt 0:00:38]} 34. a3 {[%emt 0:00:15]} Rb3 {[%emt 0:01:01]} 35. Ke2 {[%emt 0:00:13]} Rxa3 {[%emt 0:00:36]} 36. Rxb7 {[%emt 0:00:07]} Rxa4 {[%emt 0:00:07]} 37. Rc7 {[%emt 0:01:44]} Rc4 {[%emt 0:00:33]} 38. Kd3 {[%emt 0:00:16]} Rc1 {[%emt 0:00:35]} 39. f4 {[%emt 0:00:48]} Kg7 {[%emt 0:03:39]} 40. Ke4 {[%emt 0:01:15]} Rc2 {[%emt 0:04:57]} 41. g3 {[%emt 0:00:00]} Rg2 {[%emt 0:00:00]} 42. g4 {[%emt 0:00:00]} Rg3 {[%emt 0:00:00]} 43. Rxc6 {[%emt 0:00:00]} Rxh3 {[%emt 0:00:00]} 1/2-1/2